[Event "*** SCC Grand Prix: Titled Tuesday Blitz"]
[Site "Chess.com"]
[Date "2020.08.04"]
[Round "8"]
[White "Sn00pPawn"]
[Black "MasterKroket"]
[Result "0-1"]
[WhiteElo "1989"]
[BlackElo "2399"]
[TimeControl "180+1"]
[EndTime "15:15:26 PDT"]
[Termination "MasterKroket won by checkmate"]

1. e4 {[%clk 0:03:00.9]} 1... c5 {[%clk 0:02:59.5]} 2. Nf3 {[%clk 0:03:01.1]}
2... e6 {[%clk 0:03:00.1]} 3. Nc3 {[%clk 0:02:59.9]} 3... Nc6 {[%clk 0:03:00.4]}
4. Bb5 {[%clk 0:02:59.8]} 4... Qc7 {[%clk 0:02:59.3]} 5. O-O {[%clk 0:02:57.2]}
5... Nge7 {[%clk 0:02:56.6]} 6. Re1 {[%clk 0:02:52.1]} 6... a6 {[%clk
0:02:56.7]} 7. Bf1 {[%clk 0:02:41.3]} 7... Ng6 {[%clk 0:02:55.5]} 8. d4 {[%clk
0:02:39]} 8... cxd4 {[%clk 0:02:55.1]} 9. Nxd4 {[%clk 0:02:38.9]} 9... b5 {[%clk
0:02:50.9]} 10. Nxc6 {[%clk 0:02:05.3]} 10... Qxc6 {[%clk 0:02:49.2]} 11. Nd5
{[%clk 0:01:59.5]} 11... Bb7 {[%clk 0:02:44.6]} 12. c4 {[%clk 0:01:59]} 12...
bxc4 {[%clk 0:02:39.6]} 13. Bd2 {[%clk 0:01:35.6]} 13... Bc5 {[%clk 0:02:29.9]}
14. Bxc4 {[%clk 0:01:24.9]} 14... O-O {[%clk 0:02:29.4]} 15. Rc1 {[%clk
0:01:23.9]} 15... exd5 {[%clk 0:02:28]} 16. Bxd5 {[%clk 0:01:23]} 16... Qb6
{[%clk 0:02:23.1]} 17. Bxb7 {[%clk 0:01:13.3]} 17... Bxf2+ {[%clk 0:02:21.5]}
18. Kh1 {[%clk 0:01:12.2]} 18... Bxe1 {[%clk 0:02:16.5]} 19. Bxa8 {[%clk
0:01:08.4]} 19... Bxd2 {[%clk 0:02:15.8]} 20. Qxd2 {[%clk 0:01:02.2]} 20... Rxa8
{[%clk 0:02:15.4]} 21. Qxd7 {[%clk 0:01:02.8]} 21... Qxb2 {[%clk 0:02:11.1]} 22.
Rc8+ {[%clk 0:00:59.7]} 22... Rxc8 {[%clk 0:02:11.1]} 23. Qxc8+ {[%clk
0:01:00.6]} 23... Nf8 {[%clk 0:02:11]} 24. h3 {[%clk 0:01:00.3]} 24... Qxa2
{[%clk 0:02:07.4]} 25. h4 {[%clk 0:00:56.1]} 25... Qb1+ {[%clk 0:02:05.4]} 26.
Kh2 {[%clk 0:00:55.6]} 26... Qxe4 {[%clk 0:02:05.9]} 27. Qxa6 {[%clk 0:00:54.8]}
27... Qxh4+ {[%clk 0:02:06]} 28. Kg1 {[%clk 0:00:55.1]} 28... Qd4+ {[%clk
0:02:05.6]} 29. Kh2 {[%clk 0:00:54.5]} 29... h6 {[%clk 0:02:06]} 30. Qc8 {[%clk
0:00:53.3]} 30... Qd6+ {[%clk 0:02:04.7]} 31. Kg1 {[%clk 0:00:52.1]} 31... Kh7
{[%clk 0:02:05.1]} 32. Qc2+ {[%clk 0:00:50.2]} 32... Ng6 {[%clk 0:02:05.2]} 33.
Qe4 {[%clk 0:00:48.6]} 33... Qe6 {[%clk 0:02:04.2]} 34. Qd3 {[%clk 0:00:48.1]}
34... f5 {[%clk 0:02:04.3]} 35. Kh2 {[%clk 0:00:46.3]} 35... Qe4 {[%clk
0:02:04.4]} 36. Qd7 {[%clk 0:00:44.8]} 36... Nf4 {[%clk 0:02:03.7]} 37. Qd2
{[%clk 0:00:43.4]} 37... Qxg2+ {[%clk 0:02:03.3]} 38. Qxg2 {[%clk 0:00:41.9]}
38... Nxg2 {[%clk 0:02:04.2]} 39. Kxg2 {[%clk 0:00:42.7]} 39... g5 {[%clk
0:02:04.4]} 40. Kf3 {[%clk 0:00:43.6]} 40... Kg6 {[%clk 0:02:04.7]} 41. Kg3
{[%clk 0:00:44.5]} 41... Kf6 {[%clk 0:02:05.3]} 42. Kh3 {[%clk 0:00:45.4]} 42...
Ke5 {[%clk 0:02:06.2]} 43. Kg3 {[%clk 0:00:46.3]} 43... Ke4 {[%clk 0:02:06.9]}
44. Kh3 {[%clk 0:00:47.2]} 44... Kf3 {[%clk 0:02:07.4]} 45. Kh2 {[%clk
0:00:47.3]} 45... Kf2 {[%clk 0:02:07.9]} 46. Kh3 {[%clk 0:00:48.2]} 46... f4
{[%clk 0:02:08.6]} 47. Kh2 {[%clk 0:00:48.9]} 47... f3 {[%clk 0:02:09.5]} 48.
Kh3 {[%clk 0:00:49.8]} 48... Kg1 {[%clk 0:02:09.8]} 49. Kg3 {[%clk 0:00:49.5]}
49... f2 {[%clk 0:02:10.4]} 50. Kg4 {[%clk 0:00:48.5]} 50... f1=Q {[%clk
0:02:11.3]} 51. Kg3 {[%clk 0:00:49.4]} 51... Qf4+ {[%clk 0:02:10.4]} 52. Kh3
{[%clk 0:00:49.6]} 52... Qh4# {[%clk 0:02:11]} 0-1

[Event "*** SCC Grand Prix: Titled Tuesday Blitz"]
[Site "Chess.com"]
[Date "2020.08.04"]
[Round "8"]
[White "aljado"]
[Black "j_coca"]
[Result "1/2-1/2"]
[WhiteElo "2134"]
[BlackElo "2300"]
[TimeControl "180+1"]
[EndTime "15:15:47 PDT"]
[Termination "Game drawn - insufficient material"]

1. e4 {[%clk 0:03:00.1]} 1... Nf6 {[%clk 0:02:59]} 2. e5 {[%clk 0:02:58.1]} 2...
Nd5 {[%clk 0:02:59]} 3. d4 {[%clk 0:02:58.6]} 3... d6 {[%clk 0:02:58.9]} 4. exd6
{[%clk 0:02:57.2]} 4... cxd6 {[%clk 0:02:58.7]} 5. c4 {[%clk 0:02:56.9]} 5...
Nb6 {[%clk 0:02:58.5]} 6. Nc3 {[%clk 0:02:57]} 6... g6 {[%clk 0:02:56.7]} 7. Nf3
{[%clk 0:02:56.1]} 7... Bg7 {[%clk 0:02:56.6]} 8. Be3 {[%clk 0:02:55.6]} 8...
Bg4 {[%clk 0:02:55.5]} 9. Be2 {[%clk 0:02:54.2]} 9... Nc6 {[%clk 0:02:55.1]} 10.
h3 {[%clk 0:02:53]} 10... Bxf3 {[%clk 0:02:54.2]} 11. Bxf3 {[%clk 0:02:52.6]}
11... O-O {[%clk 0:02:53.4]} 12. b3 {[%clk 0:02:46.5]} 12... Rc8 {[%clk
0:02:52.8]} 13. O-O {[%clk 0:02:45]} 13... e5 {[%clk 0:02:52.2]} 14. d5 {[%clk
0:02:39.3]} 14... Ne7 {[%clk 0:02:50.4]} 15. Rc1 {[%clk 0:02:33.3]} 15... f5
{[%clk 0:02:49.7]} 16. Bg5 {[%clk 0:02:32.7]} 16... h6 {[%clk 0:02:48.7]} 17.
Bxe7 {[%clk 0:02:31.5]} 17... Qxe7 {[%clk 0:02:49.6]} 18. Be2 {[%clk 0:02:28.1]}
18... e4 {[%clk 0:02:47.1]} 19. Nb5 {[%clk 0:02:21]} 19... a6 {[%clk 0:02:45.7]}
20. Nd4 {[%clk 0:02:19.6]} 20... Bxd4 {[%clk 0:02:44.7]} 21. Qxd4 {[%clk
0:02:18.2]} 21... Nd7 {[%clk 0:02:45]} 22. b4 {[%clk 0:02:17.2]} 22... Qe5
{[%clk 0:02:44.3]} 23. Rfd1 {[%clk 0:02:14.7]} 23... b6 {[%clk 0:02:42.3]} 24.
Qd2 {[%clk 0:02:08.7]} 24... g5 {[%clk 0:02:37]} 25. c5 {[%clk 0:02:08.1]} 25...
bxc5 {[%clk 0:02:34.9]} 26. Bxa6 {[%clk 0:02:07.8]} 26... Rb8 {[%clk 0:02:32.7]}
27. bxc5 {[%clk 0:02:04.2]} 27... Nxc5 {[%clk 0:02:33.6]} 28. Bc4 {[%clk
0:02:02.1]} 28... Rb2 {[%clk 0:02:32.1]} 29. Rc2 {[%clk 0:02:01.5]} 29... Rfb8
{[%clk 0:02:30.2]} 30. Rxb2 {[%clk 0:01:58.5]} 30... Rxb2 {[%clk 0:02:29.7]} 31.
Qa5 {[%clk 0:01:58.3]} 31... e3 {[%clk 0:02:24.6]} 32. Qd8+ {[%clk 0:01:56.8]}
32... Kg7 {[%clk 0:02:24.3]} 33. fxe3 {[%clk 0:01:52.9]} 33... Qxe3+ {[%clk
0:02:22.3]} 34. Kh1 {[%clk 0:01:53.1]} 34... Qg3 {[%clk 0:02:17.1]} 35. Qe7+
{[%clk 0:01:48.2]} 35... Kg6 {[%clk 0:02:16.5]} 36. Qe8+ {[%clk 0:01:46]} 36...
Kf6 {[%clk 0:02:16.1]} 37. Bf1 {[%clk 0:01:40.1]} 37... Ne4 {[%clk 0:02:13.6]}
38. Qh8+ {[%clk 0:01:33.7]} 38... Kg6 {[%clk 0:02:09.3]} 39. Qxb2 {[%clk
0:01:32.7]} 39... Nf2+ {[%clk 0:02:08.9]} 40. Kg1 {[%clk 0:01:32.3]} 40... Nxd1
{[%clk 0:02:09.1]} 41. Qe2 {[%clk 0:01:27.1]} 41... Qe3+ {[%clk 0:02:02.3]} 42.
Qxe3 {[%clk 0:01:26.3]} 42... Nxe3 {[%clk 0:02:03.2]} 43. a4 {[%clk 0:01:25.4]}
43... Nxd5 {[%clk 0:02:03.1]} 44. a5 {[%clk 0:01:25.5]} 44... Nc7 {[%clk
0:01:58.2]} 45. a6 {[%clk 0:01:25.2]} 45... Kf6 {[%clk 0:01:57.9]} 46. a7 {[%clk
0:01:25.5]} 46... Ke5 {[%clk 0:01:57.3]} 47. Ba6 {[%clk 0:01:24.7]} 47... Kf4
{[%clk 0:01:56.2]} 48. Bb7 {[%clk 0:01:24.6]} 48... d5 {[%clk 0:01:55.2]} 49.
Bxd5 {[%clk 0:01:22.4]} 49... Kg3 {[%clk 0:01:54.8]} 50. a8=Q {[%clk 0:01:17]}
50... Nxa8 {[%clk 0:01:54.3]} 51. Bxa8 {[%clk 0:01:17.3]} 51... h5 {[%clk
0:01:53.4]} 52. Bc6 {[%clk 0:01:14.6]} 52... g4 {[%clk 0:01:51.5]} 53. hxg4
{[%clk 0:01:13]} 53... hxg4 {[%clk 0:01:52.4]} 54. Bd7 {[%clk 0:01:12.1]} 54...
f4 {[%clk 0:01:52.4]} 55. Bc6 {[%clk 0:01:03.3]} 55... f3 {[%clk 0:01:52.2]} 56.
gxf3 {[%clk 0:01:02.7]} 56... gxf3 {[%clk 0:01:53.1]} 57. Bxf3 {[%clk
0:01:02.2]} 1/2-1/2

[Event "*** SCC Grand Prix: Titled Tuesday Blitz"]
[Site "Chess.com"]
[Date "2020.08.04"]
[Round "8"]
[White "anpospan"]
[Black "DariaVoit"]
[Result "1-0"]
[WhiteElo "2356"]
[BlackElo "2525"]
[TimeControl "180+1"]
[EndTime "15:15:52 PDT"]
[Termination "anpospan won by resignation"]

1. d4 {[%clk 0:03:00.9]} 1... Nf6 {[%clk 0:01:36.1]} 2. c4 {[%clk 0:03:00.4]}
2... e6 {[%clk 0:01:33.7]} 3. Nc3 {[%clk 0:03:00.1]} 3... Bb4 {[%clk 0:01:31.1]}
4. a3 {[%clk 0:03:00]} 4... Bxc3+ {[%clk 0:01:30.7]} 5. bxc3 {[%clk 0:02:59.9]}
5... b6 {[%clk 0:01:29.2]} 6. f3 {[%clk 0:02:59.9]} 6... Nc6 {[%clk 0:01:27.7]}
7. e4 {[%clk 0:02:59.7]} 7... d6 {[%clk 0:01:28.2]} 8. Bd3 {[%clk 0:02:58]} 8...
Na5 {[%clk 0:01:25.1]} 9. f4 {[%clk 0:02:53.5]} 9... Ba6 {[%clk 0:01:23.4]} 10.
Qe2 {[%clk 0:02:52.8]} 10... Qd7 {[%clk 0:01:12.7]} 11. e5 {[%clk 0:02:47.5]}
11... Ng8 {[%clk 0:01:09.1]} 12. Nf3 {[%clk 0:02:29.7]} 12... Ne7 {[%clk
0:01:07.2]} 13. O-O {[%clk 0:02:27.6]} 13... Qa4 {[%clk 0:01:01.9]} 14. exd6
{[%clk 0:02:21.3]} 14... cxd6 {[%clk 0:01:01.1]} 15. f5 {[%clk 0:02:18.8]} 15...
Bxc4 {[%clk 0:00:57.8]} 16. fxe6 {[%clk 0:02:17.4]} 16... fxe6 {[%clk
0:00:47.7]} 17. Ng5 {[%clk 0:02:11.6]} 17... Kd7 {[%clk 0:00:45.2]} 18. Rf7
{[%clk 0:02:00.6]} 18... h6 {[%clk 0:00:36.6]} 19. Nxe6 {[%clk 0:01:53]} 19...
Bxd3 {[%clk 0:00:29.3]} 20. Nc5+ {[%clk 0:01:46.2]} 20... bxc5 {[%clk
0:00:02.6]} 21. Qxe7+ {[%clk 0:01:43.5]} 21... Kc6 {[%clk 0:00:03.1]} 22. Qd7+
{[%clk 0:01:38.4]} 22... Kb6 {[%clk 0:00:03.1]} 23. Qxa4 {[%clk 0:01:36.7]}
23... Bb5 {[%clk 0:00:03.6]} 24. dxc5+ {[%clk 0:01:31.6]} 24... dxc5 {[%clk
0:00:03.1]} 25. Qf4 {[%clk 0:01:31.3]} 25... Rad8 {[%clk 0:00:02.7]} 26. Be3
{[%clk 0:01:29.4]} 1-0

[Event "*** SCC Grand Prix: Titled Tuesday Blitz"]
[Site "Chess.com"]
[Date "2020.08.04"]
[Round "8"]
[White "mapleaff"]
[Black "bazar-wokzal"]
[Result "0-1"]
[WhiteElo "2393"]
[BlackElo "2479"]
[TimeControl "180+1"]
[EndTime "15:15:56 PDT"]
[Termination "bazar-wokzal won by checkmate"]

1. d4 {[%clk 0:02:57.5]} 1... Nf6 {[%clk 0:02:59.5]} 2. c4 {[%clk 0:02:57.8]}
2... Nc6 {[%clk 0:02:59.8]} 3. Nf3 {[%clk 0:02:56.4]} 3... e6 {[%clk 0:02:59.8]}
4. g3 {[%clk 0:02:56]} 4... Bb4+ {[%clk 0:02:58.8]} 5. Bd2 {[%clk 0:02:55.8]}
5... a5 {[%clk 0:02:59.7]} 6. Bg2 {[%clk 0:02:55.1]} 6... d6 {[%clk 0:02:59.3]}
7. O-O {[%clk 0:02:55.1]} 7... e5 {[%clk 0:02:59.8]} 8. d5 {[%clk 0:02:48.3]}
8... Nb8 {[%clk 0:02:59.5]} 9. Nc3 {[%clk 0:02:42.9]} 9... O-O {[%clk
0:02:58.1]} 10. Bg5 {[%clk 0:02:35.1]} 10... Bxc3 {[%clk 0:02:55.9]} 11. bxc3
{[%clk 0:02:34.4]} 11... h6 {[%clk 0:02:55.6]} 12. Bc1 {[%clk 0:02:28.9]} 12...
Na6 {[%clk 0:02:49.9]} 13. Ba3 {[%clk 0:02:19.8]} 13... Bf5 {[%clk 0:02:48.4]}
14. c5 {[%clk 0:02:16]} 14... Re8 {[%clk 0:02:33.8]} 15. cxd6 {[%clk 0:02:14.6]}
15... cxd6 {[%clk 0:02:33.8]} 16. Nd2 {[%clk 0:02:05.8]} 16... Rc8 {[%clk
0:02:31.1]} 17. Rc1 {[%clk 0:01:56]} 17... Nc5 {[%clk 0:02:30.1]} 18. Nb3 {[%clk
0:01:47.6]} 18... Nfd7 {[%clk 0:02:27.9]} 19. Nxc5 {[%clk 0:01:45]} 19... Nxc5
{[%clk 0:02:27.8]} 20. f3 {[%clk 0:01:33.4]} 20... e4 {[%clk 0:02:26.4]} 21. Qd4
{[%clk 0:01:25.4]} 21... exf3 {[%clk 0:02:20.2]} 22. exf3 {[%clk 0:01:21.7]}
22... Re2 {[%clk 0:02:11.1]} 23. Rf2 {[%clk 0:01:18.4]} 23... Rxf2 {[%clk
0:02:09.7]} 24. Qxf2 {[%clk 0:01:11.7]} 24... Nd3 {[%clk 0:02:08.9]} 25. Qc2
{[%clk 0:01:09.9]} 25... Qb6+ {[%clk 0:01:57.4]} 26. Kf1 {[%clk 0:01:05]} 26...
Rxc3 {[%clk 0:01:50.4]} 27. Rb1 {[%clk 0:00:44]} 27... Qe3 {[%clk 0:01:34.7]}
28. Bc1 {[%clk 0:00:17]} 28... Qe1# {[%clk 0:01:31.2]} 0-1

[Event "*** SCC Grand Prix: Titled Tuesday Blitz"]
[Site "Chess.com"]
[Date "2020.08.04"]
[Round "8"]
[White "Zubrrr"]
[Black "BogdanDeac"]
[Result "0-1"]
[WhiteElo "2641"]
[BlackElo "2776"]
[TimeControl "180+1"]
[EndTime "15:16:07 PDT"]
[Termination "BogdanDeac won by checkmate"]

1. c4 {[%clk 0:03:00.9]} 1... e6 {[%clk 0:02:59.7]} 2. g3 {[%clk 0:03:00.9]}
2... d5 {[%clk 0:03:00]} 3. Bg2 {[%clk 0:03:01.4]} 3... Nf6 {[%clk 0:03:00.5]}
4. Nf3 {[%clk 0:03:01.9]} 4... Be7 {[%clk 0:03:01]} 5. O-O {[%clk 0:03:02.4]}
5... O-O {[%clk 0:03:01.5]} 6. b3 {[%clk 0:03:02.9]} 6... d4 {[%clk 0:03:01.3]}
7. e3 {[%clk 0:03:03.1]} 7... c5 {[%clk 0:03:01.2]} 8. exd4 {[%clk 0:03:03.4]}
8... cxd4 {[%clk 0:03:01.2]} 9. Re1 {[%clk 0:03:04]} 9... Nc6 {[%clk 0:03:00.7]}
10. Bb2 {[%clk 0:02:42.6]} 10... Re8 {[%clk 0:02:40.3]} 11. a3 {[%clk
0:02:25.3]} 11... a5 {[%clk 0:02:37]} 12. d3 {[%clk 0:02:18.9]} 12... Bf8 {[%clk
0:02:28.9]} 13. Ne5 {[%clk 0:02:17.8]} 13... Qd6 {[%clk 0:02:25.2]} 14. f4
{[%clk 0:02:14.5]} 14... Nd7 {[%clk 0:02:23.9]} 15. Nxd7 {[%clk 0:01:05.9]}
15... Bxd7 {[%clk 0:02:22.3]} 16. Nd2 {[%clk 0:01:06.8]} 16... e5 {[%clk
0:02:22.1]} 17. fxe5 {[%clk 0:01:01.7]} 17... Rxe5 {[%clk 0:02:21.7]} 18. Rxe5
{[%clk 0:01:01.6]} 18... Qxe5 {[%clk 0:02:21.7]} 19. Ne4 {[%clk 0:00:25.2]}
19... f5 {[%clk 0:02:15.9]} 20. Nf2 {[%clk 0:00:24.9]} 20... Re8 {[%clk
0:02:15.4]} 21. Bd5+ {[%clk 0:00:23.3]} 21... Kh8 {[%clk 0:02:15.1]} 22. Qf3
{[%clk 0:00:23.1]} 22... Qe3 {[%clk 0:02:07.1]} 23. Kg2 {[%clk 0:00:19.5]} 23...
Qd2 {[%clk 0:02:04.7]} 24. Bc1 {[%clk 0:00:17]} 24... Qc3 {[%clk 0:02:02.6]} 25.
Rb1 {[%clk 0:00:16.1]} 25... Qc2 {[%clk 0:01:44.2]} 26. Ra1 {[%clk 0:00:16.4]}
26... Re1 {[%clk 0:01:44.1]} 27. Bb2 {[%clk 0:00:16.1]} 27... Re2 {[%clk
0:01:42.6]} 28. Bc1 {[%clk 0:00:12]} 28... Ne5 {[%clk 0:01:41]} 29. Qf4 {[%clk
0:00:07.2]} 29... Nxd3 {[%clk 0:01:34.9]} 30. Qb8 {[%clk 0:00:05.1]} 30... Rxf2+
{[%clk 0:01:29.9]} 31. Kg1 {[%clk 0:00:05.3]} 31... Rf1+ {[%clk 0:01:29.9]} 32.
Kxf1 {[%clk 0:00:05.2]} 32... Qf2# {[%clk 0:01:29.8]} 0-1

[Event "*** SCC Grand Prix: Titled Tuesday Blitz"]
[Site "Chess.com"]
[Date "2020.08.04"]
[Round "8"]
[White "ClydeHillKid"]
[Black "cukin84"]
[Result "1-0"]
[WhiteElo "2311"]
[BlackElo "2170"]
[TimeControl "180+1"]
[EndTime "15:16:17 PDT"]
[Termination "ClydeHillKid won by resignation"]

1. e4 {[%clk 0:03:00.9]} 1... c6 {[%clk 0:02:58.8]} 2. d3 {[%clk 0:03:00.1]}
2... d5 {[%clk 0:02:56.4]} 3. Nd2 {[%clk 0:03:00.5]} 3... e5 {[%clk 0:02:55.2]}
4. Ngf3 {[%clk 0:03:00.7]} 4... Bd6 {[%clk 0:02:53.6]} 5. g3 {[%clk 0:03:00.4]}
5... Nf6 {[%clk 0:02:49.2]} 6. Bg2 {[%clk 0:02:59.6]} 6... O-O {[%clk 0:02:48]}
7. O-O {[%clk 0:02:58.2]} 7... Bg4 {[%clk 0:02:42.3]} 8. Re1 {[%clk 0:02:56.3]}
8... d4 {[%clk 0:02:40.7]} 9. c3 {[%clk 0:02:47.8]} 9... c5 {[%clk 0:02:38]} 10.
h3 {[%clk 0:02:40.9]} 10... Bxf3 {[%clk 0:02:37.2]} 11. Nxf3 {[%clk 0:02:39.2]}
11... Nc6 {[%clk 0:02:34.9]} 12. Bd2 {[%clk 0:02:33.2]} 12... Rb8 {[%clk
0:02:31.4]} 13. a3 {[%clk 0:02:24.9]} 13... b5 {[%clk 0:02:29.7]} 14. cxd4
{[%clk 0:02:22.8]} 14... c4 {[%clk 0:02:25.9]} 15. d5 {[%clk 0:02:05.6]} 15...
Nd4 {[%clk 0:02:23.3]} 16. Nxd4 {[%clk 0:02:04.6]} 16... exd4 {[%clk 0:02:22]}
17. e5 {[%clk 0:02:01.1]} 17... Bc5 {[%clk 0:02:16.7]} 18. exf6 {[%clk
0:01:57.9]} 18... Qxf6 {[%clk 0:02:16.4]} 19. Qf3 {[%clk 0:01:44]} 19... Qg6
{[%clk 0:02:11.7]} 20. Qe4 {[%clk 0:01:38.5]} 20... Qb6 {[%clk 0:01:55.7]} 21.
Bb4 {[%clk 0:01:24.2]} 21... a5 {[%clk 0:01:51]} 22. Bxc5 {[%clk 0:01:24.1]}
22... Qxc5 {[%clk 0:01:51.6]} 23. Rac1 {[%clk 0:01:09.6]} 23... g6 {[%clk
0:01:49.9]} 24. dxc4 {[%clk 0:01:02.7]} 24... bxc4 {[%clk 0:01:49.1]} 25. Red1
{[%clk 0:01:02.6]} 25... d3 {[%clk 0:01:28.6]} 26. Rxc4 {[%clk 0:00:56.1]} 26...
Qa7 {[%clk 0:01:23.6]} 27. Qxd3 {[%clk 0:00:47]} 27... Rxb2 {[%clk 0:01:22.3]}
28. Rc2 {[%clk 0:00:42.4]} 28... Rfb8 {[%clk 0:01:10.7]} 29. d6 {[%clk 0:00:31]}
29... R8b3 {[%clk 0:01:02]} 30. Rc8+ {[%clk 0:00:20.8]} 30... Kg7 {[%clk
0:00:59.8]} 31. Qd4+ {[%clk 0:00:20.9]} 31... Qxd4 {[%clk 0:00:59.4]} 32. Rxd4
{[%clk 0:00:21.8]} 1-0

[Event "*** SCC Grand Prix: Titled Tuesday Blitz"]
[Site "Chess.com"]
[Date "2020.08.04"]
[Round "8"]
[White "Justinz"]
[Black "Chesswizard_2007"]
[Result "0-1"]
[WhiteElo "2351"]
[BlackElo "2501"]
[TimeControl "180+1"]
[EndTime "15:16:18 PDT"]
[Termination "Chesswizard_2007 won by resignation"]

1. e4 {[%clk 0:03:00.9]} 1... Nc6 {[%clk 0:02:49.8]} 2. d4 {[%clk 0:02:59.9]}
2... d5 {[%clk 0:02:43]} 3. Nc3 {[%clk 0:02:52.3]} 3... dxe4 {[%clk 0:02:35.8]}
4. d5 {[%clk 0:02:51.1]} 4... Ne5 {[%clk 0:02:35.6]} 5. Bg5 {[%clk 0:02:43.4]}
5... Nf6 {[%clk 0:02:34.1]} 6. Qd4 {[%clk 0:02:42]} 6... Ng6 {[%clk 0:02:29.1]}
7. O-O-O {[%clk 0:02:41.4]} 7... h6 {[%clk 0:02:23.1]} 8. Bxf6 {[%clk
0:02:40.2]} 8... exf6 {[%clk 0:02:24]} 9. Nxe4 {[%clk 0:02:36]} 9... Be7 {[%clk
0:02:21.6]} 10. Nf3 {[%clk 0:02:32.9]} 10... O-O {[%clk 0:02:21.2]} 11. Bc4
{[%clk 0:02:24.5]} 11... Bd6 {[%clk 0:02:14.9]} 12. h4 {[%clk 0:02:22.1]} 12...
Ne5 {[%clk 0:02:12.3]} 13. Nxe5 {[%clk 0:02:17.5]} 13... fxe5 {[%clk 0:02:11.4]}
14. Qe3 {[%clk 0:01:42.7]} 14... f5 {[%clk 0:02:09.1]} 15. Nxd6 {[%clk
0:01:39.6]} 15... cxd6 {[%clk 0:02:10]} 16. h5 {[%clk 0:01:38.4]} 16... Bd7
{[%clk 0:02:03]} 17. Kb1 {[%clk 0:01:37.4]} 17... b5 {[%clk 0:02:01.1]} 18. Bd3
{[%clk 0:01:36.8]} 18... Qb6 {[%clk 0:01:54.5]} 19. Qh3 {[%clk 0:01:32.2]} 19...
a5 {[%clk 0:01:46.5]} 20. f3 {[%clk 0:01:32.2]} 20... a4 {[%clk 0:01:46]} 21. g4
{[%clk 0:01:31.8]} 21... a3 {[%clk 0:01:42.6]} 22. Bxf5 {[%clk 0:01:13.2]} 22...
Bxf5 {[%clk 0:01:39.1]} 23. gxf5 {[%clk 0:01:12.9]} 23... axb2 {[%clk 0:01:40]}
24. Rd3 {[%clk 0:01:12.1]} 24... b4 {[%clk 0:01:35.4]} 25. Qg4 {[%clk
0:01:08.1]} 25... Qa6 {[%clk 0:00:58.9]} 26. a3 {[%clk 0:01:03.8]} 26... bxa3
{[%clk 0:00:59.2]} 27. Ka2 {[%clk 0:01:03.5]} 27... Qc8 {[%clk 0:00:43.9]} 28.
Rg1 {[%clk 0:01:01]} 28... Ra7 {[%clk 0:00:40.6]} 29. Qg6 {[%clk 0:00:54.9]}
29... Qxc2 {[%clk 0:00:35]} 0-1

[Event "*** SCC Grand Prix: Titled Tuesday Blitz"]
[Site "Chess.com"]
[Date "2020.08.04"]
[Round "8"]
[White "tlomigtlis"]
[Black "SilviusTiberius"]
[Result "1-0"]
[WhiteElo "2431"]
[BlackElo "2501"]
[TimeControl "180+1"]
[EndTime "15:16:20 PDT"]
[Termination "tlomigtlis won by resignation"]

1. d4 {[%clk 0:03:00.9]} 1... Nf6 {[%clk 0:02:59.5]} 2. c4 {[%clk 0:03:01.2]}
2... g6 {[%clk 0:02:59.8]} 3. Nc3 {[%clk 0:02:59.7]} 3... Bg7 {[%clk 0:03:00.2]}
4. g3 {[%clk 0:02:59.9]} 4... d6 {[%clk 0:03:00.5]} 5. Bg2 {[%clk 0:03:00]} 5...
O-O {[%clk 0:03:01.2]} 6. Nf3 {[%clk 0:03:00.6]} 6... Nc6 {[%clk 0:03:01.6]} 7.
O-O {[%clk 0:03:00.9]} 7... Rb8 {[%clk 0:03:02.1]} 8. h3 {[%clk 0:02:58.2]} 8...
a6 {[%clk 0:02:59]} 9. e4 {[%clk 0:02:58.1]} 9... Re8 {[%clk 0:02:57.5]} 10. Re1
{[%clk 0:02:55.1]} 10... e5 {[%clk 0:02:56.2]} 11. Bg5 {[%clk 0:02:36.3]} 11...
h6 {[%clk 0:02:45.4]} 12. Be3 {[%clk 0:02:31.7]} 12... b5 {[%clk 0:02:43.9]} 13.
cxb5 {[%clk 0:02:30.3]} 13... axb5 {[%clk 0:02:42]} 14. Rc1 {[%clk 0:02:23.7]}
14... exd4 {[%clk 0:02:34.7]} 15. Nxd4 {[%clk 0:02:23]} 15... Nxd4 {[%clk
0:02:34.5]} 16. Bxd4 {[%clk 0:02:23.2]} 16... b4 {[%clk 0:02:33.1]} 17. Nd5
{[%clk 0:02:13.4]} 17... Nxd5 {[%clk 0:02:32.4]} 18. Bxg7 {[%clk 0:02:13.9]}
18... Kxg7 {[%clk 0:02:27.4]} 19. Qxd5 {[%clk 0:02:10.9]} 19... Re5 {[%clk
0:01:59.6]} 20. Qd4 {[%clk 0:02:05.7]} 20... Kg8 {[%clk 0:01:39.3]} 21. f4
{[%clk 0:01:58]} 21... Ra5 {[%clk 0:01:38.5]} 22. e5 {[%clk 0:01:40.7]} 22...
Be6 {[%clk 0:01:33.5]} 23. Red1 {[%clk 0:01:22.5]} 23... Rxa2 {[%clk 0:01:24.4]}
24. Bd5 {[%clk 0:00:51.3]} 24... Bxd5 {[%clk 0:01:16.3]} 25. Qxd5 {[%clk
0:00:52.2]} 25... Rxb2 {[%clk 0:01:15.6]} 26. e6 {[%clk 0:00:50.7]} 26... fxe6
{[%clk 0:01:00.4]} 27. Qxe6+ {[%clk 0:00:50.3]} 27... Kh7 {[%clk 0:00:58.2]} 28.
Re1 {[%clk 0:00:48.6]} 28... Qh8 {[%clk 0:00:25.5]} 29. Rxc7+ {[%clk 0:00:46.9]}
1-0

[Event "*** SCC Grand Prix: Titled Tuesday Blitz"]
[Site "Chess.com"]
[Date "2020.08.04"]
[Round "8"]
[White "Steven_Rojas"]
[Black "Chessbard1972"]
[Result "0-1"]
[WhiteElo "2440"]
[BlackElo "2353"]
[TimeControl "180+1"]
[EndTime "15:16:25 PDT"]
[Termination "Chessbard1972 won by resignation"]

1. c4 {[%clk 0:03:00.9]} 1... e6 {[%clk 0:02:57.1]} 2. Nf3 {[%clk 0:02:59.6]}
2... d5 {[%clk 0:02:56]} 3. e3 {[%clk 0:03:00.1]} 3... c5 {[%clk 0:02:52.9]} 4.
cxd5 {[%clk 0:02:56.8]} 4... exd5 {[%clk 0:02:52]} 5. d4 {[%clk 0:02:57.2]} 5...
Nf6 {[%clk 0:02:51]} 6. Nc3 {[%clk 0:02:51.4]} 6... Nc6 {[%clk 0:02:50]} 7. Bb5
{[%clk 0:02:50.3]} 7... a6 {[%clk 0:02:48]} 8. Bxc6+ {[%clk 0:02:49.1]} 8...
bxc6 {[%clk 0:02:48]} 9. O-O {[%clk 0:02:45.8]} 9... Bd6 {[%clk 0:02:46.8]} 10.
dxc5 {[%clk 0:02:44.4]} 10... Bxc5 {[%clk 0:02:46.3]} 11. b3 {[%clk 0:02:44.7]}
11... O-O {[%clk 0:02:44.8]} 12. Bb2 {[%clk 0:02:44.8]} 12... Bg4 {[%clk
0:02:44.1]} 13. Rc1 {[%clk 0:02:35.4]} 13... Qe7 {[%clk 0:02:42.8]} 14. Na4
{[%clk 0:02:32.3]} 14... Bd6 {[%clk 0:02:36.6]} 15. Rxc6 {[%clk 0:02:27.9]}
15... Rfd8 {[%clk 0:02:29.1]} 16. Qd4 {[%clk 0:02:17]} 16... Bd7 {[%clk
0:02:08.1]} 17. Rc2 {[%clk 0:01:51.8]} 17... Rab8 {[%clk 0:02:06.1]} 18. Rfc1
{[%clk 0:01:49.5]} 18... Rb4 {[%clk 0:02:02.7]} 19. Qd3 {[%clk 0:01:22.6]} 19...
Bxa4 {[%clk 0:01:41.3]} 20. bxa4 {[%clk 0:01:23.5]} 20... Rxa4 {[%clk
0:01:39.7]} 21. Rc8 {[%clk 0:01:15.5]} 21... h6 {[%clk 0:01:22.5]} 22. Qf5
{[%clk 0:01:09.5]} 22... Nd7 {[%clk 0:00:54.6]} 23. Rxd8+ {[%clk 0:01:03.3]}
23... Qxd8 {[%clk 0:00:54.2]} 24. Qxd5 {[%clk 0:01:03.7]} 24... Nf6 {[%clk
0:00:42.3]} 25. Rd1 {[%clk 0:00:38.2]} 25... Nxd5 {[%clk 0:00:40.7]} 26. Rxd5
{[%clk 0:00:36.4]} 26... Bxh2+ {[%clk 0:00:39.9]} 27. Kxh2 {[%clk 0:00:34.3]}
27... Qxd5 {[%clk 0:00:40.3]} 0-1